bitfinex-derivatives/quotes_BTCF0:USTF0_20250101
["timestamp","ask_amount","ask_price","bid_price","bid_amount"]
[1735720826494,0.38919419,93591.0,93590.0,0.053523]
[1735720827296,0.38919419,93591.0,93590.0,0.054523]
[1735720828000,0.38919419,93591.0,93590.0,0.055523]
[1735720830802,0.38919419,93591.0,93590.0,0.053523]
[1735720831005,0.38919419,93591.0,93590.0,0.054523]
[1735720834902,0.37167772,93591.0,93590.0,0.054523]
[1735720837203,0.01087772,93591.0,93590.0,0.054523]
[1735720837495,0.053518,93599.0,93598.0,0.053518]
[1735720837701,0.07105612,93599.0,93598.0,0.053518]
[1735720838102,0.58159348,93599.0,93598.0,0.053518]
[1735720838491,0.68017715,93599.0,93598.0,0.053518]
[1735720840201,0.68017715,93599.0,93598.0,0.054518]
[1735720840402,0.66263903,93599.0,93598.0,0.054518]
[1735720841008,0.56405536,93599.0,93598.0,0.054518]
[1735720841897,0.94238264,93599.0,93598.0,0.054518]
[1735720842909,0.58158264,93599.0,93598.0,0.054518]
[1735720843412,0.94238264,93599.0,93598.0,0.054518]
[1735720844715,0.94238264,93599.0,93598.0,0.053518]
[1735720844913,0.94238264,93599.0,93598.0,0.054518]
[1735720849030,0.9423759,93599.0,93598.0,0.054518]
[1735720849830,1.04096112,93599.0,93598.0,0.054518]
[1735720851433,0.68016112,93599.0,93598.0,0.054518]
[1735720851632,1.04096112,93599.0,93598.0,0.054518]
[1735720852540,0.68016112,93599.0,93598.0,0.054518]
[1735720852839,1.04096112,93599.0,93598.0,0.054518]
[1735720853338,1.02344058,93599.0,93598.0,0.054518]
[1735720854632,0.92485536,93599.0,93598.0,0.054518]
[1735720856941,0.92485536,93599.0,93598.0,0.001]
[1735720856942,0.42485536,93599.0,93598.0,0.001]
[1735720857128,0.45645536,93599.0,93598.0,0.001]
[1735720857640,0.053525,93586.0,93585.0,0.3608]
[1735720858025,0.17384851,93586.0,93585.0,0.3608]
[1735720858230,0.19142472,93586.0,93585.0,0.3608]
[1735720859432,0.17384851,93586.0,93585.0,0.3608]
[1735720859637,0.19157529,93586.0,93585.0,0.3608]
[1735720859836,0.20251024,93586.0,93585.0,0.3608]
[1735720860040,0.20351024,93586.0,93585.0,0.3618]
[1735720861033,0.18578346,93586.0,93585.0,0.3618]
[1735720864039,0.20346532,93586.0,93585.0,0.3618]
[1735720865533,0.56426532,93586.0,93585.0,0.001]
[1735720867639,0.20346532,93586.0,93585.0,0.001]
[1735720867837,0.56426532,93586.0,93585.0,0.001]
[1735720871039,0.77808152,93586.0,93585.0,0.00040988]
[1735720879862,0.56426532,93586.0,93585.0,0.00040988]
[1735720881259,0.54658346,93586.0,93585.0,0.00040988]
[1735720882350,0.56378192,93586.0,93585.0,0.00040988]
[1735720885366,0.54658346,93586.0,93585.0,0.00040988]
[1735720887360,0.6623201,93586.0,93585.0,0.00040988]
[1735720894059,0.5637199,93586.0,93585.0,0.00040988]
[1735720897645,0.54658346,93586.0,93585.0,0.00040988]
[1735720899061,0.56370722,93586.0,93585.0,0.00040988]
[1735720900560,0.54658346,93586.0,93585.0,0.00040988]
[1735720901656,0.76040234,93586.0,93585.0,0.00040988]
[1735720906660,0.64518602,93586.0,93585.0,0.00040988]
[1735720908969,0.54658346,93586.0,93585.0,0.00040988]
[1735720914265,0.18578346,93586.0,93585.0,0.05393588]
[1735720914461,0.06545995,93586.0,93585.0,0.05393588]
[1735720915069,0.42625995,93586.0,93585.0,0.05393588]
[1735720915270,0.42625995,93586.0,93585.0,0.00040988]
[1735720917187,0.42625995,93586.0,93585.0,0.0001813]
[1735720918261,0.52486199,93586.0,93585.0,0.0001813]
[1735720918966,0.42625995,93586.0,93585.0,0.0001813]
[1735720921470,0.06545995,93586.0,93585.0,0.0001813]
[1735720923771,0.16405429,93586.0,93585.0,0.0001813]
[1735720931583,0.52485429,93586.0,93585.0,0.0001813]
[1735720932484,0.42625995,93586.0,93585.0,0.0001813]
[1735720937483,0.92625995,93586.0,93585.0,0.0001813]
[1735720937784,0.56545995,93586.0,93585.0,0.0001813]
[1735720937981,0.92625995,93586.0,93585.0,0.0001813]
[1735720938186,0.06545995,93586.0,93585.0,0.0001813]
[1735720938380,0.42625995,93586.0,93585.0,0.0001813]
[1735720938582,0.92625995,93586.0,93585.0,0.0001813]
[1735720938789,0.56545995,93586.0,93585.0,0.0001813]
[1735720938984,0.92625995,93586.0,93585.0,0.0001813]
[1735720939189,0.06545995,93586.0,93585.0,0.0001813]
[1735720939489,0.92625995,93586.0,93585.0,0.0001813]
[1735720939686,0.42625995,93586.0,93585.0,0.0001813]
[1735720940090,0.92625995,93586.0,93585.0,0.0001813]
[1735720943579,0.76355204,93586.0,93585.0,0.0001813]
[1735720943993,0.81707704,93586.0,93585.0,0.0001813]
[1735720947193,0.41356015,93586.0,93585.0,0.0537073]
[1735720947591,0.51215651,93586.0,93585.0,0.0537073]
[1735720949990,0.10940447,93586.0,93585.0,0.0537073]
[1735720953902,0.01080811,93586.0,93585.0,0.0537073]
[1735720954098,0.86232,93588.0,93585.0,0.0001813]
[1735720954299,0.8608,93588.0,93587.0,0.053525]
[1735720955314,0.8618,93588.0,93587.0,0.053525]
[1735720956419,0.87280421,93588.0,93587.0,0.053525]
[1735720957412,0.87280421,93588.0,93587.0,0.054525]
[1735720959020,0.87180421,93588.0,93587.0,0.053525]
[1735720959220,0.87280421,93588.0,93587.0,0.054525]
[1735720962716,1.08660056,93588.0,93587.0,0.054525]
[1735720965817,0.97139638,93588.0,93587.0,0.054525]
[1735720968830,0.87280421,93588.0,93587.0,0.054525]
[1735720969520,0.51200421,93588.0,93587.0,0.054525]
[1735720972431,0.56552821,93588.0,93587.0,0.054525]
[1735720976829,0.66412417,93588.0,93587.0,0.054525]
[1735720977632,0.61060017,93588.0,93587.0,0.054525]
[1735720977827,0.09959596,93588.0,93587.0,0.054525]
[1735720979041,0.001,93588.0,93587.0,0.054525]
[1735720990544,0.10152,93600.0,93587.0,0.054525]
[1735720990741,0.1,93600.0,93599.0,0.053518]
[1735720991942,0.101,93600.0,93599.0,0.054518]
[1735720992448,0.11168428,93600.0,93599.0,0.054518]
[1735720995653,0.11168428,93600.0,93599.0,0.415318]
[1735720996274,0.21026415,93600.0,93599.0,0.415318]
[1735720996972,0.20926415,93600.0,93599.0,0.054518]
[1735720997179,0.11068428,93600.0,93599.0,0.054518]
[1735721000772,0.11068428,93600.0,93599.0,0.053518]
[1735721001079,0.11068428,93600.0,93599.0,0.054518]
[1735721002878,0.11068428,93600.0,93599.0,0.053518]
[1735721003078,0.11068428,93600.0,93599.0,0.054518]
[1735721003470,0.11068428,93600.0,93599.0,0.053518]
[1735721003672,0.11068428,93600.0,93599.0,0.054518]
[1735721010383,0.11068428,93600.0,93599.0,0.001]
[1735721010684,0.72828508,93600.0,93599.0,0.001]
[1735721010869,0.76048508,93600.0,93599.0,0.001]
[1735721013086,0.053524,93588.0,93587.0,0.3608]
[1735721013479,0.16939672,93588.0,93587.0,0.3608]
[1735721014279,0.26799563,93588.0,93587.0,0.3618]
[1735721017076,0.26999563,93588.0,93587.0,0.3618]
[1735721017578,0.28059973,93588.0,93587.0,0.3618]
[1735721022192,0.18200082,93588.0,93587.0,0.001]
[1735721031788,0.18200082,93588.0,93587.0,0.054525]
[1735721032483,0.0661281,93588.0,93587.0,0.054525]
[1735721033084,0.0651281,93588.0,93587.0,0.054525]
[1735721035101,0.0116041,93588.0,93587.0,0.054525]
[1735721036895,0.11019941,93588.0,93587.0,0.054525]
[1735721038904,0.16372341,93588.0,93587.0,0.054525]
[1735721044712,0.0651281,93588.0,93587.0,0.054525]
[1735721047313,0.0651281,93588.0,93587.0,0.02959864]
[1735721053019,0.16372325,93588.0,93587.0,0.001]
[1735721054311,0.053527,93583.0,93565.0,0.053537]
[1735721054519,0.414335,93569.0,93565.0,0.053537]
[1735721054817,0.053537,93566.0,93565.0,0.053537]
[1735721056216,0.053537,93566.0,93561.0,0.23779992]
[1735721056217,0.053539,93562.0,93561.0,0.23779992]
[1735721056415,0.052539,93562.0,93561.0,0.23779992]
[1735721056916,0.552539,93562.0,93561.0,0.23779992]
[1735721057321,0.15113415,93562.0,93561.0,0.23779992]
[1735721057620,0.65113415,93562.0,93561.0,0.23979992]
[1735721057812,0.26970592,93562.0,93561.0,0.23979992]
[1735721058003,0.76970592,93562.0,93561.0,0.24079992]
[1735721058312,0.26970592,93562.0,93561.0,0.24079992]
[1735721058720,0.76970592,93562.0,93561.0,0.24079992]
[1735721059110,0.26970592,93562.0,93561.0,0.24079992]
[1735721059313,0.67111077,93562.0,93561.0,0.24079992]
[1735721059723,0.17111077,93562.0,93561.0,0.24079992]
[1735721059923,0.67111077,93562.0,93561.0,0.24079992]
[1735721060227,0.17111077,93562.0,93561.0,0.24079992]
[1735721060428,0.67111077,93562.0,93561.0,0.24079992]
[1735721066828,0.50943864,93562.0,93561.0,0.24079992]
[1735721068038,0.56297764,93562.0,93561.0,0.24079992]
[1735721070230,0.56297764,93562.0,93561.0,0.003]
[1735721084349,0.66160098,93562.0,93561.0,0.003]
[1735721089353,0.56297764,93562.0,93561.0,0.003]
[1735721098951,0.56297764,93562.0,93561.0,0.002]
[1735721110772,0.66160354,93562.0,93561.0,0.002]
[1735721111461,0.66160354,93562.0,93561.0,0.001]
[1735721111666,0.56297764,93562.0,93561.0,0.001]
[1735721111870,0.053545,93552.0,93551.0,0.053545]
[1735721112667,0.053547,93547.0,93546.0,0.33434757]
[1735721112865,0.414347,93547.0,93546.0,0.30184757]
[1735721113182,0.413347,93547.0,93546.0,0.30184757]
[1735721113662,0.412347,93547.0,93546.0,0.30184757]
[1735721114667,0.413347,93547.0,93546.0,0.30184757]
[1735721115272,0.417347,93547.0,93546.0,0.30184757]
[1735721115985,0.417347,93547.0,93546.0,0.27114757]
[1735721116566,0.056547,93547.0,93546.0,0.27114757]
[1735721116879,0.417347,93547.0,93546.0,0.27114757]
[1735721117061,0.53294918,93547.0,93546.0,0.0333]
[1735721117268,0.05355,93543.0,93538.0,0.053553]
[1735721118368,0.05355,93543.0,93536.0,0.0309]
[1735721118369,0.55355,93543.0,93536.0,0.0309]
[1735721118575,0.17239514,93543.0,93530.0,0.3608]
[1735721118877,0.053557,93531.0,93530.0,0.3608]
[1735721120770,0.50152,93533.0,93524.0,0.0632]
[1735721120771,0.36232,93533.0,93524.0,0.0632]
[1735721120966,0.36232,93533.0,93530.0,0.002]
[1735721120967,0.053556,93532.0,93530.0,0.002]
[1735721121467,0.053556,93532.0,93530.0,0.006]
[1735721121863,0.053561,93525.0,93524.0,0.003]
[1735721122172,0.053561,93525.0,93524.0,0.01]
[1735721122575,0.049561,93525.0,93524.0,0.003]
[1735721123770,0.01392713,93532.0,93522.0,0.0336]
[1735721123974,0.053557,93531.0,93530.0,0.002]
[1735721124178,0.17663958,93531.0,93530.0,0.002]
[1735721124568,0.001,93525.0,93522.0,0.0336]
[1735721124773,0.047561,93524.0,93522.0,0.0336]
[1735721126083,0.049561,93524.0,93522.0,0.0336]
[1735721127672,0.053563,93520.0,93519.0,0.053563]
[1735721129074,0.055563,93520.0,93519.0,0.053563]
[1735721130581,0.053566,93515.0,93513.0,0.29149073]
[1735721131176,0.053566,93515.0,93513.0,0.23792373]
[1735721131572,0.053566,93515.0,93510.0,0.0325]
[1735721131573,0.553567,93513.0,93510.0,0.0325]
[1735721131769,0.552567,93513.0,93510.0,0.0325]
[1735721131976,0.5,93511.0,93510.0,0.0325]
[1735721132177,0.5,93512.0,93506.0,0.3608]
[1735721132383,0.05357,93507.0,93506.0,0.3608]
[1735721132883,0.05157,93507.0,93506.0,0.3608]
[1735721133676,0.17150939,93507.0,93506.0,0.3608]
[1735721133984,0.66950939,93507.0,93506.0,0.3608]
[1735721134183,0.16950939,93507.0,93506.0,0.3608]
[1735721134485,0.66950939,93507.0,93506.0,0.3648]
[1735721134690,0.66950939,93507.0,93506.0,0.007]
[1735721134877,0.16950939,93507.0,93506.0,0.006]
[1735721135187,0.66950939,93507.0,93506.0,0.006]
[1735721135487,0.16950939,93507.0,93506.0,0.006]
[1735721135787,0.66950939,93507.0,93506.0,0.006]
[1735721136083,0.16950939,93507.0,93506.0,0.006]
[1735721136484,0.66950939,93507.0,93506.0,0.006]
[1735721136880,0.16950939,93507.0,93506.0,0.006]
[1735721137079,0.68220926,93507.0,93506.0,0.006]
[1735721137586,0.18220926,93507.0,93506.0,0.006]
[1735721137789,0.68220926,93507.0,93506.0,0.006]
[1735721137983,0.18220926,93507.0,93506.0,0.003]
[1735721138176,0.63263926,93507.0,93502.0,0.00160374]
[1735721138495,0.053573,93503.0,93502.0,0.00160374]
[1735721138687,0.0336,93506.0,93493.0,0.053578]
[1735721138877,0.12190691,93503.0,93493.0,0.053578]
[1735721139077,0.053578,93494.0,93493.0,0.053578]
[1735721139277,0.053579,93492.0,93487.0,0.053582]
[1735721140587,0.16502505,93492.0,93487.0,0.053582]
[1735721140783,0.16502505,93492.0,93488.0,0.053581]
[1735721141287,0.16602505,93492.0,93491.0,0.3678]
[1735721141483,0.001,93492.0,93491.0,0.42138]
[1735721143985,0.33131309,93506.0,93503.0,0.053572]
[1735721144185,0.33131309,93506.0,93491.0,0.42138]
[1735721144186,0.33131309,93506.0,93504.0,0.053572]
[1735721144385,0.11982284,93505.0,93504.0,0.053572]
[1735721144789,0.61982284,93505.0,93504.0,0.053572]
[1735721145185,0.5,93506.0,93504.0,0.053572]
[1735721145489,0.61596323,93505.0,93504.0,0.053572]
[1735721145795,0.11596323,93505.0,93504.0,0.053572]
[1735721146796,0.11596323,93505.0,93504.0,0.054572]
[1735721150295,0.11596323,93505.0,93504.0,0.001]
[1735721151693,0.61596323,93505.0,93504.0,0.001]
[1735721151887,0.11596323,93505.0,93504.0,0.001]
[1735721152787,0.6331063,93505.0,93504.0,0.001]
[1735721153182,0.1331063,93505.0,93504.0,0.001]
[1735721153386,0.6331063,93505.0,93504.0,0.001]
[1735721153697,0.1331063,93505.0,93504.0,0.001]
[1735721153995,0.6331063,93505.0,93504.0,0.001]
[1735721154190,0.053572,93504.0,93490.0,0.1256978]
[1735721154391,0.01714307,93504.0,93490.0,0.1256978]
[1735721154592,0.553578,93494.0,93490.0,0.1256978]
[1735721154799,0.053579,93493.0,93490.0,0.05358]
[1735721154998,0.553579,93493.0,93490.0,0.05358]
[1735721155492,0.5,93492.0,93490.0,0.05358]
[1735721157187,0.501,93492.0,93490.0,0.05358]
[1735721158799,0.01351588,93492.0,93490.0,0.05358]
[1735721159000,0.51351588,93492.0,93490.0,0.05358]
[1735721160603,0.51351588,93492.0,93491.0,0.3608]
[1735721160794,0.51351588,93492.0,93490.0,0.05358]
[1735721161011,0.51351588,93492.0,93491.0,0.3608]
[1735721161597,0.51251588,93492.0,93491.0,0.3608]
[1735721161799,0.51351588,93492.0,93491.0,0.3608]
[1735721163496,0.501,93492.0,93491.0,0.3608]
[1735721163700,0.501,93492.0,93490.0,0.05358]
[1735721163892,0.501,93492.0,93491.0,0.3608]
[1735721164702,0.501,93492.0,93491.0,0.61746888]
[1735721165496,0.001,93492.0,93491.0,0.67104888]
[1735721166193,0.501,93492.0,93491.0,0.67104888]
[1735721167102,0.501,93492.0,93491.0,0.31024888]
[1735721167302,0.501,93492.0,93491.0,0.67104888]
[1735721168105,0.501,93492.0,93491.0,0.41438]
[1735721168300,0.001,93492.0,93491.0,0.05358]
[1735721168515,0.001,93492.0,93491.0,0.41438]
[1735721170104,0.001,93492.0,93491.0,0.05358]
[1735721170405,0.05358,93491.0,93490.0,0.19284023]
[1735721171399,0.5,93487.0,93486.0,0.053582]
[1735721171902,0.5,93488.0,93486.0,0.053582]
[1735721172307,0.05358,93490.0,93486.0,0.053582]
[1735721172496,0.001,93491.0,93486.0,0.053582]
[1735721172696,0.01737333,93497.0,93486.0,0.055582]
[1735721172697,0.053581,93488.0,93486.0,0.055582]
[1735721172907,0.5,93487.0,93486.0,0.055582]
[1735721173311,0.053581,93488.0,93486.0,0.055582]
[1735721173312,0.553581,93488.0,93486.0,0.056582]
[1735721173504,0.053581,93488.0,93486.0,0.056582]
[1735721173700,0.553581,93488.0,93486.0,0.056582]
[1735721174008,0.053581,93488.0,93486.0,0.056582]
[1735721174306,0.553581,93488.0,93486.0,0.056582]
[1735721174708,0.053581,93488.0,93486.0,0.056582]
[1735721174910,0.553581,93488.0,93486.0,0.056582]
[1735721175299,0.053581,93488.0,93486.0,0.056582]
[1735721175497,0.553581,93488.0,93486.0,0.056582]
[1735721175700,0.12207231,93487.0,93486.0,0.003]
[1735721176702,0.62207231,93487.0,93486.0,0.003]
[1735721176903,0.6346585,93487.0,93486.0,0.003]
[1735721177103,0.1346585,93487.0,93486.0,0.003]
[1735721177302,0.05359,93473.0,93472.0,0.00160464]
[1735721177510,0.05159,93473.0,93472.0,0.00160464]
[1735721178405,0.05259,93473.0,93472.0,0.01060464]
[1735721179805,0.05259,93473.0,93472.0,0.009]
[1735721179806,0.17083588,93473.0,93472.0,0.009]
[1735721181610,0.053591,93472.0,93460.0,0.1442356]
[1735721181806,0.12124588,93473.0,93465.0,0.053594]
[1735721181807,0.053594,93467.0,93465.0,0.053594]
[1735721183709,0.05353444,93467.0,93465.0,0.053594]
[1735721184507,0.05353444,93467.0,93465.0,0.054594]
[1735721187100,0.05353444,93467.0,93465.0,0.001]
[1735721194419,0.05353444,93467.0,93452.0,0.053598]
[1735721194420,0.002,93467.0,93457.0,0.0721178]
[1735721194621,0.053594,93458.0,93457.0,0.0721178]
[1735721194819,0.5,93463.0,93452.0,0.053598]
[1735721194820,0.053596,93456.0,93452.0,0.053598]
[1735721195616,0.051596,93456.0,93452.0,0.053598]
[1735721195811,0.053597,93453.0,93451.0,0.00160518]
[1735721196219,0.053597,93453.0,93452.0,0.001]
[1735721197924,0.053597,93453.0,93452.0,0.003]
[1735721198227,0.053597,93453.0,93452.0,0.002]
[1735721198410,0.054597,93453.0,93452.0,0.002]
[1735721201125,0.053607,93439.0,93429.0,0.053612]
[1735721201325,0.53467786,93453.0,93428.0,0.3608]
[1735721201326,0.053612,93429.0,93428.0,0.3608]
[1735721201528,0.053615,93424.0,93420.0,0.0721178]
[1735721201729,0.053615,93424.0,93419.0,0.0338]
[1735721201730,0.3608,93423.0,93419.0,0.0338]
[1735721202224,0.3608,93423.0,93418.0,0.25666888]
[1735721202420,0.3608,93423.0,93415.0,0.22664023]
[1735721202421,0.3538,93423.0,93415.0,0.22664023]
[1735721202618,0.053618,93420.0,93415.0,0.22664023]
[1735721202818,0.053618,93420.0,93417.0,0.053619]
[1735721204124,0.050618,93420.0,93417.0,0.053619]
[1735721204822,0.051618,93420.0,93418.0,0.053619]
[1735721205022,0.001,93420.0,93418.0,0.053619]
[1735721206422,0.001,93420.0,93418.0,0.057619]
[1735721206823,0.054618,93420.0,93418.0,0.057619]
[1735721207025,0.054618,93420.0,93418.0,0.004]
[1735721207427,0.053614,93427.0,93419.0,0.3608]
[1735721207927,0.053615,93426.0,93421.0,0.053617]
[1735721208135,0.053615,93425.0,93421.0,0.053617]
[1735721209130,0.053616,93423.0,93419.0,0.3608]
[1735721210730,0.053616,93423.0,93420.0,0.053617]
[1735721211233,0.056616,93423.0,93420.0,0.053617]
[1735721211431,0.053617,93422.0,93420.0,0.053617]
[1735721213034,0.055617,93422.0,93420.0,0.053617]
[1735721214335,0.057617,93422.0,93420.0,0.053617]
[1735721220844,0.004,93422.0,93420.0,0.053617]
[1735721228262,0.004,93422.0,93421.0,0.053617]
[1735721230156,0.004,93422.0,93414.0,0.3608]
[1735721230357,0.004,93422.0,93407.0,0.053625]
[1735721230358,0.5,93412.0,93407.0,0.053625]
[1735721230561,0.5,93412.0,93409.0,0.053624]
[1735721230756,0.053622,93414.0,93409.0,0.053624]
[1735721231362,0.053622,93414.0,93410.0,0.053623]
[1735721231558,0.001,93412.0,93410.0,0.053623]
[1735721231863,0.001,93412.0,93411.0,0.19284023]
[1735721232065,0.054622,93414.0,93411.0,0.19284023]
[1735721234758,0.001,93414.0,93411.0,0.19284023]
[1735721234959,0.053622,93413.0,93411.0,0.19284023]
[1735721235153,0.001,93412.0,93411.0,0.19284023]
[1735721235759,0.001,93412.0,93408.0,0.00160567]
[1735721235953,0.053624,93409.0,93408.0,0.00160567]
[1735721236754,0.053624,93409.0,93408.0,0.36240567]
[1735721237968,0.057624,93409.0,93408.0,0.00160567]
[1735721238858,0.060624,93409.0,93408.0,0.00160567]
[1735721239659,0.07799663,93409.0,93408.0,0.00160567]
[1735721240364,0.060624,93409.0,93408.0,0.00160567]
[1735721240566,0.07799476,93409.0,93408.0,0.00160567]
[1735721241065,0.19616482,93409.0,93408.0,0.00160567]
[1735721245356,0.17879406,93409.0,93408.0,0.00160567]
[1735721245556,0.19596113,93409.0,93408.0,0.00160567]
[1735721246566,0.053629,93401.0,93400.0,0.1]
[1735721247953,0.054629,93401.0,93400.0,0.1]
[1735721248266,0.055629,93401.0,93400.0,0.1]
[1735721250155,0.002,93401.0,93400.0,0.1]
[1735721250467,0.00152,93407.0,93405.0,0.053627]
[1735721250667,0.053621,93415.0,93406.0,0.0696]
[1735721251054,0.50152,93426.0,93414.0,0.053622]
[1735721251260,0.00152,93426.0,93414.0,0.053622]
[1735721251454,0.05362,93418.0,93416.0,0.0724092]
[1735721251656,0.05362,93418.0,93414.0,0.053622]
[1735721252167,0.007,93416.0,93414.0,0.053622]
[1735721252858,0.05362,93418.0,93415.0,0.053621]
[1735721252859,0.06062,93418.0,93415.0,0.053621]
[1735721253971,0.007,93418.0,93415.0,0.053621]
[1735721254170,0.05362,93417.0,93415.0,0.053621]
[1735721254872,0.07058997,93417.0,93415.0,0.053621]
[1735721255064,0.007,93416.0,93415.0,0.053621]
[1735721255271,0.02396997,93416.0,93415.0,0.053621]
[1735721255573,0.01696997,93416.0,93415.0,0.053621]
[1735721255766,0.07858997,93417.0,93415.0,0.053621]
[1735721255966,0.01696997,93416.0,93415.0,0.053621]
[1735721256361,0.008,93416.0,93415.0,0.053621]
[1735721256571,0.02496997,93416.0,93415.0,0.053621]
[1735721257274,0.02896997,93416.0,93415.0,0.053621]
[1735721257873,0.02096997,93416.0,93415.0,0.053621]
[1735721258769,0.02896997,93416.0,93415.0,0.053621]
[1735721262775,0.02896997,93416.0,93410.0,0.3608]
[1735721262970,0.012,93416.0,93410.0,0.3608]
[1735721263880,0.053622,93414.0,93410.0,0.414424]
[1735721264082,0.053622,93414.0,93411.0,0.053623]
[1735721265366,0.059622,93414.0,93411.0,0.053623]
[1735721266173,0.062622,93414.0,93411.0,0.053623]
[1735721267783,0.062622,93414.0,93412.0,0.053623]
[1735721268871,0.056622,93414.0,93412.0,0.053623]
[1735721269079,0.3608,93424.0,93412.0,0.053623]
[1735721269272,0.3608,93424.0,93410.0,0.3608]
[1735721269273,0.053614,93428.0,93422.0,0.053616]
[1735721269478,0.50156001,93440.0,93423.0,0.0323]
[1735721269479,0.053614,93427.0,93423.0,0.0323]
[1735721269678,0.053614,93427.0,93424.0,0.053615]
[1735721271073,0.053614,93427.0,93423.0,0.0323]
[1735721271384,0.062614,93427.0,93425.0,0.053615]
[1735721271584,0.009,93427.0,93425.0,0.053615]
[1735721271778,0.009,93427.0,93424.0,0.001]
[1735721272086,0.414404,93446.0,93425.0,0.053615]
[1735721272283,0.42603615,93446.0,93436.0,0.11030171]
[1735721272577,0.42603615,93446.0,93438.0,0.3608]
[1735721273374,0.37743215,93446.0,93438.0,0.3608]
[1735721273678,0.37743215,93446.0,93444.0,0.053604]
[1735721274186,0.38043215,93446.0,93444.0,0.053604]
[1735721274780,0.38943215,93446.0,93444.0,0.054604]
[1735721275683,0.39043215,93446.0,93444.0,0.055604]
[1735721277079,0.053604,93445.0,93444.0,0.002]
[1735721278083,0.07052218,93445.0,93444.0,0.002]
[1735721278489,0.07952218,93445.0,93444.0,0.002]
[1735721279284,0.08852218,93445.0,93444.0,0.002]
[1735721280493,0.071604,93445.0,93444.0,0.002]
[1735721287793,0.018,93445.0,93444.0,0.002]
[1735721287998,0.018,93445.0,93444.0,0.0333]
[1735721288299,0.3608,93456.0,93455.0,0.053598]
[1735721288494,0.3608,93456.0,93444.0,0.0333]
[1735721288495,0.01169856,93459.0,93449.0,0.3608]
[1735721288704,0.35053024,93463.0,93462.0,0.053594]
[1735721288892,0.36212811,93463.0,93462.0,0.053594]
[1735721289086,0.01159787,93463.0,93462.0,0.053594]
[1735721289396,0.053593,93465.0,93462.0,0.053594]
[1735721290200,0.50152,93469.0,93462.0,0.053594]
[1735721290499,0.053593,93464.0,93462.0,0.053594]
[1735721291405,0.053593,93464.0,93462.0,0.054594]
[1735721291406,0.009,93463.0,93462.0,0.054594]
[1735721291699,0.009,93463.0,93462.0,0.055594]
[1735721292098,0.053593,93464.0,93462.0,0.054594]
[1735721292304,0.053593,93464.0,93462.0,0.055594]
[1735721292495,0.00152,93469.0,93468.0,0.053591]
[1735721292802,0.35053024,93471.0,93470.0,0.05359]
[1735721293897,0.3608,93483.0,93466.0,0.3608]
[1735721294199,0.11269702,93482.0,93480.0,0.053583]
[1735721295695,0.12369702,93482.0,93480.0,0.055583]
[1735721298896,0.0987076,93481.0,93480.0,0.055583]
[1735721300898,0.1077076,93481.0,93480.0,0.055583]
[1735721301102,0.1117076,93481.0,93480.0,0.056583]
[1735721301707,0.1067076,93481.0,93480.0,0.054583]
[1735721302807,0.008,93481.0,93480.0,0.054583]
[1735721309321,0.21308568,93494.0,93480.0,0.054583]
[1735721309527,0.21308568,93494.0,93493.0,0.053577]
[1735721310422,0.22891835,93494.0,93493.0,0.053577]
[1735721310927,0.23291835,93494.0,93493.0,0.001]
[1735721311117,0.23591835,93494.0,93493.0,0.002]
[1735721312613,0.22891835,93494.0,93493.0,0.001]
[1735721312822,0.23291835,93494.0,93493.0,0.001]
[1735721313418,0.22891835,93494.0,93490.0,0.053578]
[1735721314119,0.22491835,93494.0,93490.0,0.053578]
[1735721314925,0.22491835,93494.0,93492.0,0.053577]
[1735721315931,0.22691835,93494.0,93492.0,0.053577]
[1735721316722,0.01383267,93494.0,93492.0,0.053577]
[1735721317120,0.51483267,93494.0,93492.0,0.053577]
[1735721317626,0.01483267,93494.0,93492.0,0.053577]
[1735721321034,0.06840867,93494.0,93492.0,0.053577]
[1735721330529,0.01728048,93493.0,93492.0,0.053577]
[1735721331837,0.02028048,93493.0,93492.0,0.053577]
[1735721333744,0.003,93493.0,93492.0,0.053577]
[1735721335344,0.053579,93488.0,93487.0,0.3608]
[1735721335549,0.053585,93478.0,93473.0,0.00160479]
[1735721335848,0.553585,93478.0,93473.0,0.00160479]
[1735721336053,0.57086548,93478.0,93473.0,0.00160479]
[1735721336350,0.07086548,93478.0,93473.0,0.00160479]
[1735721336849,0.07086548,93478.0,93468.0,0.07225552]
[1735721336850,0.1980796,93478.0,93459.0,0.3608]
[1735721337048,0.053593,93464.0,93460.0,0.07225552]
[1735721337245,0.053593,93464.0,93459.0,0.3608]
[1735721338546,0.09870856,93463.0,93461.0,0.053595]
[1735721338937,0.09870856,93463.0,93462.0,0.0337]
[1735721339545,0.053588,93473.0,93462.0,0.0337]
[1735721339858,0.053588,93473.0,93467.0,0.053591]
[1735721340345,0.09870856,93472.0,93470.0,0.05359]
[1735721341343,0.09870856,93472.0,93471.0,0.3608]
[1735721341839,0.001,93473.0,93472.0,0.053589]
[1735721342553,0.21405438,93480.0,93471.0,0.3608]
[1735721342850,0.21405438,93480.0,93474.0,0.053587]
[1735721343358,0.053586,93476.0,93471.0,0.3608]
[1735721343651,0.004,93473.0,93470.0,0.16377485]
[1735721344035,0.053586,93476.0,93470.0,0.16377485]
[1735721345154,0.002,93473.0,93470.0,0.16377485]
[1735721345842,0.005,93473.0,93470.0,0.053589]
[1735721346047,0.003,93473.0,93470.0,0.053589]
[1735721346554,0.120054,93472.0,93470.0,0.053589]
[1735721346747,0.001,93476.0,93470.0,0.053589]
[1735721347140,0.11289146,93472.0,93470.0,0.053589]
[1735721347350,0.001,93476.0,93471.0,0.053589]
[1735721347752,0.001,93473.0,93471.0,0.053589]
[1735721348952,0.002,93472.0,93471.0,0.053589]
[1735721349560,0.003,93473.0,93471.0,0.053589]
[1735721349946,0.002,93476.0,93467.0,0.3608]
[1735721350146,0.053591,93469.0,93467.0,0.3608]
[1735721350346,0.053593,93464.0,93459.0,0.414396]